bitfinex/quotes_ETHUSD_20241223
["timestamp","ask_amount","ask_price","bid_price","bid_amount"]
[1734934935092,3.0,3306.2,3304.0,1.26019859]
[1734934935093,3.02586,3304.9,3304.0,1.26019859]
[1734934935291,0.7901,3304.8,3304.0,1.26019859]
[1734934935790,0.7622,3304.5,3303.5,1.26019859]
[1734934936731,0.7622,3304.5,3303.6,3.02697]
[1734934937137,0.7622,3304.5,3303.7,3.0]
[1734934937494,0.7622,3304.5,3303.4,0.61345939]
[1734934937495,3.78837,3304.5,3303.4,3.61345939]
[1734934937696,3.02645,3304.2,3303.4,3.0]
[1734934937937,3.78901,3303.9,3303.2,0.551951]
[1734934938108,3.02681,3303.8,3303.2,0.551951]
[1734934938323,0.7622,3303.9,3303.2,1.81214959]
[1734934938324,3.02704,3303.6,3303.2,1.81214959]
[1734934938552,3.02683,3303.8,3303.2,1.81214959]
[1734934938715,3.027,3303.6,3303.2,1.81214959]
[1734934938909,3.78901,3303.9,3303.2,1.81214959]
[1734934939256,3.02682,3303.8,3303.2,1.81214959]
[1734934939948,3.02691,3303.7,3303.2,0.551951]
[1734934942056,0.7622,3303.9,3303.2,0.551951]
[1734934942262,0.7622,3303.9,3303.4,3.0]
[1734934942813,0.7557,3304.4,3303.4,3.0]
[1734934943010,0.7557,3304.4,3303.6,3.02698]
[1734934943413,0.6557,3304.4,3303.4,3.0]
[1734934943864,0.6557,3304.4,3303.4,6.02716]
[1734934946162,0.6557,3304.4,3303.2,6.579251]
[1734934946471,0.6557,3304.4,3303.5,3.0]
[1734934946829,0.6557,3304.4,3303.5,3.02706]
[1734934947031,0.7557,3304.7,3303.6,6.02697]
[1734934947235,0.7557,3304.7,3303.5,0.1267]
[1734934947451,3.78177,3304.7,3303.5,0.1267]
[1734934947765,0.7875,3304.0,3303.2,0.551951]
[1734934948123,0.7875,3304.0,3303.3,1.26019859]
[1734934948964,0.8187,3304.4,3303.4,0.1267]
[1734934949360,0.8187,3304.4,3303.6,3.02697]
[1734934949580,0.8187,3304.4,3303.5,3.0]
[1734934949770,0.8187,3304.4,3303.5,3.027]
[1734934949970,0.8187,3304.4,3303.6,3.0]
[1734934950555,0.8187,3304.4,3303.6,6.02696]
[1734934952584,0.8187,3304.4,3303.4,0.73244662]
[1734934952585,0.8187,3304.4,3303.4,6.75956662]
[1734934952879,0.8187,3304.4,3303.7,3.0]
[1734934953286,0.8187,3304.4,3303.7,6.02688]
[1734934953686,0.8187,3304.4,3303.7,3.0]
[1734934953988,0.791,3304.7,3304.2,3.02643]
[1734934954762,0.791,3304.7,3304.2,3.6179373]
[1734934955594,0.791,3304.7,3304.0,3.02662]
[1734934955958,0.791,3304.7,3303.8,5.61132625]
[1734934956162,0.791,3304.7,3303.9,0.61419158]
[1734934956346,0.791,3304.7,3303.9,3.61419158]
[1734934956687,0.791,3304.7,3304.0,3.0266]
[1734934956985,0.791,3304.7,3303.9,0.61419158]
[1734934957491,0.791,3304.7,3304.0,3.0]
[1734934958392,0.791,3304.7,3304.5,3.02616]
[1734934958544,3.02505,3305.8,3304.6,3.02606]
[1734934958545,0.7845,3305.1,3304.6,3.02606]
[1734934958751,0.7845,3305.1,3304.2,3.1267]
[1734934959060,0.7845,3305.7,3304.7,3.02597]
[1734934959266,0.7845,3305.7,3304.8,3.0]
[1734934959665,0.7845,3305.7,3304.5,3.02608]
[1734934960000,3.80958,3305.7,3304.6,3.0]
[1734934960205,0.782,3305.6,3304.2,3.1267]
[1734934960496,0.7816,3305.2,3304.2,6.02643]
[1734934960791,0.7816,3305.2,3304.3,3.02634]
[1734934960993,0.7816,3305.2,3304.4,3.0]
[1734934961294,3.80715,3305.2,3304.2,4.85857798]
[1734934961805,3.02566,3305.1,3304.2,4.85857798]
[1734934961954,3.02573,3305.0,3304.2,4.26019859]
[1734934962301,3.02573,3305.0,3303.9,7.28690859]
[1734934962447,0.7816,3305.2,3304.3,3.0]
[1734934962643,1.162308,3305.2,3303.9,1.26019859]
[1734934962966,0.7756,3304.4,3303.9,1.26019859]
[1734934963394,0.7756,3304.4,3304.0,2.61446146]
[1734934964090,3.02599,3304.8,3304.0,2.61446146]
[1734934964091,3.78014,3304.1,3304.0,2.61446146]
[1734934964408,3.78014,3304.1,3303.4,0.61189138]
[1734934964409,0.7536,3304.1,3303.4,0.61189138]
[1734934964637,0.7536,3304.1,3303.2,1.81214959]
[1734934965194,0.7536,3304.1,3303.3,3.02722]
[1734934965508,0.8332,3304.8,3303.7,3.0269]
[1734934965691,0.8332,3304.8,3304.0,3.0]
[1734934966062,0.8332,3304.8,3303.8,3.0]
[1734934966613,0.8332,3304.8,3304.0,3.0]
[1734934966918,0.8332,3304.8,3303.9,1.04652193]
[1734934967063,1.219103,3304.8,3303.9,1.04652193]
[1734934967263,0.8332,3304.8,3303.9,1.04652193]
[1734934967776,0.8332,3304.8,3304.0,3.02661]
[1734934967977,0.8332,3304.8,3303.7,4.86815323]
[1734934968178,0.8332,3304.8,3303.9,3.02665]
[1734934968398,0.8332,3304.8,3304.2,3.02637]
[1734934969531,0.8332,3304.8,3304.2,3.63262705]
[1734934969726,3.406028,3305.7,3304.2,0.60625705]
[1734934970032,1.3911028,3305.6,3304.6,3.02606]
[1734934970187,0.7505,3305.6,3304.6,3.02606]
[1734934970804,0.7505,3305.6,3304.7,3.0]
[1734934972173,0.7505,3305.6,3304.4,1.26019859]
[1734934972349,0.7505,3305.2,3304.4,1.26019859]
[1734934972644,0.7959,3305.4,3304.4,1.26019859]
[1734934972849,0.7959,3304.8,3304.4,1.26019859]
[1734934973343,0.7959,3304.8,3304.0,1.26019859]
[1734934973526,3.82186,3304.8,3304.0,1.26019859]
[1734934974044,0.7959,3304.8,3304.0,1.26019859]
[1734934974350,0.7959,3304.8,3303.9,3.0]
[1734934974498,0.7959,3304.8,3303.8,4.04664416]
[1734934975241,0.7959,3304.8,3303.9,1.04664416]
[1734934978019,3.8218,3304.8,3303.9,1.04664416]
[1734934978745,3.026,3304.7,3303.9,1.04664416]
[1734934978951,0.7959,3304.8,3303.9,1.04664416]
[1734934979755,0.7959,3304.8,3304.0,1.04664416]
[1734934980909,3.84774,3304.1,3304.0,1.04664416]
[1734934981115,0.8212,3304.1,3303.9,2.61813365]
[1734934982177,0.8212,3304.8,3303.9,2.61813365]
[1734934982354,1.24699594,3304.9,3304.3,3.0]
[1734934982519,1.24699594,3304.9,3304.6,3.02605]
[1734934982908,1.24699594,3304.9,3304.7,3.0]
[1734934983255,1.24699594,3304.9,3304.4,3.0]
[1734934983777,0.8178,3305.1,3304.7,2.61813365]
[1734934984901,0.8178,3305.1,3304.7,3.0]
[1734934985513,0.8178,3305.1,3304.6,4.04664416]
[1734934986240,0.8178,3305.1,3304.6,3.0]
[1734934986550,0.8178,3305.1,3304.5,4.26019859]
[1734934987450,0.8178,3305.1,3304.7,2.61945666]
[1734934988504,0.8178,3305.1,3304.3,1.26019859]
[1734934988909,0.8178,3305.1,3304.4,3.02626]
[1734934989156,0.8178,3305.1,3304.5,3.0]
[1734934989457,0.8178,3305.1,3304.7,6.02597]
[1734934989763,1.24699594,3305.8,3304.7,6.02597]
[1734934989972,0.7829,3305.7,3305.1,3.02561]
[1734934990134,0.7829,3305.7,3305.0,3.0]
[1734934990336,3.02527,3305.5,3304.7,3.0]
[1734934990569,3.02527,3305.5,3304.6,3.0]
[1734934990876,0.7743,3305.4,3304.5,8.98]
[1734934991527,0.7743,3305.4,3305.1,2.62036596]
[1734934993237,0.7743,3305.4,3304.7,1.04814638]
[1734934994127,3.02562,3305.1,3304.7,1.04814638]
[1734934994327,3.02562,3305.1,3304.5,1.26019859]
[1734934995642,3.02562,3305.1,3304.3,1.26019859]
[1734934995827,0.7891,3305.0,3304.3,1.26019859]
[1734934996028,0.7891,3305.0,3304.3,4.04878102]
[1734934996229,0.8172,3305.6,3304.5,3.02613]
[1734934996429,0.8172,3305.6,3304.9,3.0]
[1734934996629,0.8172,3305.6,3304.9,3.02579]
[1734934996866,0.8172,3305.6,3304.9,5.81437243]
[1734934997684,1.24699594,3305.8,3304.9,5.81437243]
[1734934997859,0.7572,3305.9,3305.3,3.02542]
[1734934998059,0.7572,3306.4,3305.3,0.1267]
[1734934998255,0.7572,3306.4,3305.5,2.78858243]
[1734934998461,0.7572,3306.4,3305.7,3.0]
[1734934998836,1.24699594,3306.6,3306.5,3.02434]
[1734934999042,0.1700415,3307.1,3306.6,3.0]
[1734934999987,0.1700415,3307.1,3306.9,2.99746646]
[1734935000387,0.1700415,3307.1,3306.9,3.02395]
[1734935002183,0.1700415,3307.1,3307.0,3.55]
[1734935003087,0.1700415,3307.1,3307.0,3.0]
[1734935003509,0.1700415,3307.1,3306.8,3.0]
[1734935003884,0.1700415,3307.1,3307.0,3.0]
[1734935004078,0.1700415,3307.1,3307.0,3.1267]
[1734935005120,0.1700415,3307.1,3307.0,10.91852304]
[1734935005492,0.7764,3308.5,3307.0,19.89852304]
[1734935005687,3.79894,3308.5,3307.3,6.5836723]
[1734935006047,0.7764,3308.5,3307.4,3.0]
[1734935006580,1.156274,3308.5,3307.4,3.0]
[1734935006895,3.83844,3308.2,3307.4,3.0]
[1734935007078,0.8156,3308.2,3307.4,3.0]
[1734935009036,3.02289,3308.1,3307.4,3.0]
[1734935009237,0.8156,3308.2,3307.4,3.0]
[1734935011640,0.7817,3307.5,3306.9,3.5836723]
[1734935011786,0.7817,3307.5,3306.5,3.5836723]
[1734935012112,0.7817,3308.4,3306.9,3.5836723]
[1734935012329,0.7817,3308.4,3307.3,3.5836723]
[1734935012918,0.7817,3308.4,3307.4,3.0]
[1734935013492,0.7817,3308.4,3307.5,0.61362466]
[1734935014096,0.7817,3308.4,3307.4,3.0]
[1734935014300,3.80433,3308.4,3307.4,3.0]
[1734935014496,4.184763,3308.4,3307.4,3.0]
[1734935015139,1.162133,3308.4,3307.4,3.0]
[1734935015310,0.7817,3308.4,3307.4,6.0235]
[1734935016545,0.7817,3308.4,3307.6,3.0]
[1734935016725,0.7817,3308.4,3307.7,3.14994]
[1734935017243,3.59673757,3309.4,3307.7,3.14994]
[1734935017244,0.7846,3308.9,3307.8,3.0]
[1734935017394,0.7846,3308.9,3307.9,3.02302]
[1734935017598,0.7846,3308.9,3308.0,3.0]
[1734935018013,0.7846,3308.9,3307.8,3.0]
[1734935018229,0.7846,3308.9,3308.1,3.0]
[1734935018427,0.7846,3308.9,3307.9,0.60848514]
[1734935018695,0.7846,3308.5,3307.4,3.0]
[1734935019146,3.80713,3308.5,3307.4,3.0]
[1734935019346,0.7846,3308.5,3306.9,3.7103723]
[1734935019550,0.7846,3308.2,3307.6,0.61943956]
[1734935020155,0.7846,3308.2,3307.0,3.02387]
[1734935020306,1.165335,3308.2,3307.0,3.02387]
[1734935020503,3.80743,3308.2,3307.0,3.02387]
[1734935020749,3.80743,3308.2,3307.4,0.60043575]
[1734935021042,3.80743,3308.2,3307.2,3.0]
[1734935021210,0.7846,3308.2,3307.2,3.0]
[1734935021617,3.0229,3308.1,3307.2,3.0]
[1734935021938,3.40365,3308.1,3307.2,3.0]
[1734935022141,3.40365,3308.1,3307.1,0.59510984]
[1734935022447,0.7544,3307.9,3307.0,5.78299042]
[1734935025419,3.02337,3307.6,3306.8,3.61750287]
[1734935025614,0.8076,3307.4,3306.4,2.78299042]
[1734935025854,0.8076,3307.5,3306.1,2.78299042]
[1734935025999,0.8076,3306.9,3305.9,1.26124777]
[1734935026349,0.8076,3306.9,3306.1,2.78299042]
[1734935027600,0.8076,3306.9,3306.2,3.0]
[1734935028202,0.8076,3306.9,3306.1,6.58493473]
[1734935028803,3.83165,3306.9,3306.1,6.58493473]
[1734935029234,0.8076,3306.9,3306.1,6.58493473]
[1734935030351,3.83159,3306.9,3306.1,6.58493473]
[1734935030552,0.8076,3306.9,3306.1,6.58493473]
[1734935031247,0.8076,3306.9,3306.1,9.60962473]
[1734935031614,0.8076,3306.9,3306.1,6.58493473]
[1734935032938,0.8076,3306.9,3305.9,0.6007407]
[1734935033336,0.8076,3306.9,3306.1,3.58493473]
[1734935033612,0.8076,3306.9,3306.2,3.0]
[1734935037573,3.02437,3306.5,3305.9,0.6007407]
[1734935037767,0.8317,3306.3,3305.8,3.0]
[1734935038062,3.02472,3306.1,3305.4,1.85579751]
[1734935038244,3.02472,3306.1,3305.4,1.26124777]
[1734935038449,0.8317,3306.3,3305.4,1.26124777]
[1734935039529,0.8317,3306.3,3305.6,3.02511]
[1734935039823,0.8317,3306.3,3305.7,3.0]
[1734935040450,0.8317,3306.3,3305.4,3.0]
[1734935040813,0.8317,3306.3,3305.7,6.58493473]
[1734935041215,0.7949,3306.7,3306.1,3.58493473]
[1734935041460,0.7949,3306.7,3306.2,3.0]
[1734935041858,0.7949,3306.7,3306.1,3.58493473]
[1734935042069,0.7949,3306.7,3305.8,3.0]
[1734935042357,0.7949,3306.7,3305.9,0.60952899]
[1734935042862,0.7949,3306.7,3305.9,1.87077676]
[1734935043545,0.7949,3306.7,3306.1,3.58493473]
[1734935044567,0.7949,3306.7,3306.2,3.0]
[1734935045338,3.02431,3306.6,3305.9,4.41428514]
[1734935045547,0.381921,3306.5,3305.9,4.26124777]
[1734935045712,0.8205,3306.4,3305.9,1.26124777]
[1734935045918,0.8205,3306.4,3306.0,1.26124777]
[1734935046113,3.02465,3306.2,3306.0,1.26124777]
[1734935046421,3.84521,3306.1,3306.0,1.26124777]
[1734935046733,0.8205,3306.1,3306.0,1.26124777]
[1734935047516,0.8205,3306.1,3305.3,3.0]
[1734935047748,0.8205,3306.1,3305.0,4.26124777]
[1734935047955,3.0249,3305.9,3305.1,0.60340154]
[1734935048307,0.8205,3306.1,3305.1,0.60340154]
[1734935048592,0.8205,3306.1,3305.3,3.0]
[1734935049292,3.02481,3306.0,3305.1,3.60340154]
[1734935049596,0.8205,3306.1,3305.0,1.26124777]
[1734935049597,3.80162,3305.1,3305.0,1.26124777]
[1734935050396,3.80162,3305.1,3305.0,0.42794777]
[1734935051192,3.80162,3305.1,3303.6,3.21422407]
[1734935051193,3.02562,3305.1,3303.6,3.21422407]
[1734935051363,0.776,3304.6,3303.6,3.21422407]
[1734935051966,0.7533,3305.8,3304.6,3.02608]
[1734935052150,0.7533,3305.8,3304.8,2.7862763]
[1734935052348,0.7533,3305.8,3304.9,3.02576]
[1734935052597,0.7533,3305.8,3305.0,3.02566]
[1734935053024,0.7533,3305.8,3305.1,5.7862763]
[1734935053329,2.01346491,3306.1,3305.5,3.0]
[1734935053481,2.01346491,3306.1,3305.1,2.7862763]
[1734935053671,2.01346491,3306.1,3305.3,3.0]
[1734935053876,0.7533,3306.1,3305.3,3.0]
[1734935054173,0.7533,3306.1,3305.0,3.0]
[1734935054573,0.7533,3306.1,3305.3,3.02539]
[1734935054802,0.7533,3306.1,3305.0,3.0]
[1734935055003,0.7533,3306.1,3305.3,3.0]
[1734935055226,0.7533,3306.1,3305.0,3.0]
[1734935055404,0.7533,3306.1,3305.3,3.02538]
[1734935055611,0.7533,3306.1,3305.4,3.0]
[1734935056075,0.7533,3306.1,3305.3,6.6126722]
[1734935056279,0.8215,3307.1,3305.4,3.7902]
[1734935056505,0.384528,3307.0,3305.4,3.7902]
[1734935056714,0.8215,3307.1,3306.1,3.02468]
[1734935057075,0.8215,3307.1,3305.8,6.02491]
[1734935057272,0.7557,3307.0,3305.8,3.0]
[1734935057581,0.7561,3306.7,3305.7,3.0]
[1734935057917,3.02431,3306.6,3305.7,3.0]
[1734935058071,3.402351,3306.6,3305.7,3.0]
[1734935058719,0.378041,3306.6,3305.7,3.0]
[1734935058956,3.02437,3306.5,3305.6,8.98]
[1734935059111,0.771,3306.4,3305.4,3.0]
[1734935059824,0.55,3307.4,3305.8,3.0]
[1734935059825,0.7888,3307.0,3305.8,3.0]
[1734935060027,0.7888,3307.0,3305.7,0.8132]
[1734935060177,0.7888,3307.0,3305.8,3.0]
[1734935060374,0.7888,3307.0,3306.0,3.0]
[1734935060577,0.7888,3307.0,3305.8,3.0]
[1734935060814,0.7888,3307.0,3306.1,3.0247]
[1734935061024,0.7888,3307.0,3306.2,3.0]
[1734935061207,0.7888,3307.0,3306.2,3.0246]
[1734935061389,0.7888,3307.0,3306.3,3.0]
[1734935062425,0.7888,3307.0,3305.7,4.4004522]
[1734935062426,0.7888,3307.0,3305.8,3.0]
[1734935063235,0.7888,3307.0,3306.0,3.59705017]
[1734935063527,0.7888,3307.0,3306.4,3.0]
[1734935064480,0.7888,3307.0,3306.6,3.02422]
[1734935064904,0.7888,3307.0,3306.2,3.0]
[1734935065312,0.7888,3307.0,3306.6,3.02422]
[1734935065977,0.8292,3307.9,3306.5,3.5872522]
[1734935066180,0.8292,3307.9,3306.8,3.02398]
[1734935066424,3.0,3308.2,3306.6,3.0]
[1734935066645,0.8292,3307.7,3306.6,3.0]
[1734935067052,0.8292,3307.6,3306.4,3.0]
[1734935067197,0.8292,3307.6,3306.2,3.0]
[1734935067198,3.02382,3307.1,3306.2,3.0]
[1734935067397,1.131582,3307.0,3305.9,4.89187166]
[1734935067626,1.131582,3307.0,3306.2,1.26290661]
[1734935068052,0.8292,3307.0,3306.3,3.02449]
[1734935068207,0.8292,3307.0,3306.4,3.0]
[1734935068403,0.8292,3307.0,3306.2,1.26290661]
[1734935068907,0.8292,3307.0,3306.1,1.04460417]
[1734935069212,1.214498,3307.0,3306.1,1.04460417]
[1734935070399,0.8292,3307.0,3306.1,1.04460417]
[1734935070741,0.8292,3307.0,3306.3,3.0]
[1734935070952,0.8292,3307.0,3306.3,3.02448]
[1734935071135,0.8292,3307.0,3306.4,3.0]
[1734935071318,0.8292,3307.0,3306.1,1.04460417]
[1734935071847,0.8292,3307.0,3306.0,8.55197239]
[1734935072056,0.8292,3307.0,3306.1,3.02466]
[1734935072248,0.8292,3307.0,3306.2,3.02459]
[1734935072635,0.8292,3307.0,3306.3,3.0]
[1734935075205,0.8292,3307.0,3306.3,3.5872522]
[1734935075407,0.8292,3307.0,3306.5,3.02434]
[1734935075658,0.8066,3308.0,3307.0,3.02386]
[1734935075955,0.8066,3308.0,3306.8,3.02406]
[1734935076134,0.4431783,3307.9,3306.7,2.78336174]
[1734935076454,0.8066,3308.0,3307.1,3.0237]
[1734935076667,0.8066,3308.0,3307.2,3.0]
[1734935076965,0.8066,3308.0,3306.9,3.0]
[1734935077313,0.8066,3308.0,3307.6,3.0]
[1734935077518,0.8066,3308.0,3307.7,3.02323]
[1734935077821,0.8232,3308.7,3307.7,3.02323]
[1734935078020,0.20833649,3308.6,3307.7,3.02323]
[1734935078262,0.20833649,3308.6,3307.6,3.0]
[1734935078263,0.20833649,3308.6,3307.8,3.0]
[1734935078426,0.8232,3308.7,3307.8,3.0]
[1734935078635,0.8232,3308.7,3308.1,3.02287]
[1734935078847,0.8232,3308.7,3307.8,3.0]
[1734935079455,0.8232,3308.7,3308.1,3.0]
[1734935079834,0.8232,3308.7,3307.8,3.61159209]
[1734935080017,0.8232,3308.7,3308.1,3.0]
[1734935080463,0.8232,3308.7,3307.8,3.0]
[1734935080931,3.84561,3308.7,3307.5,1.26433578]
[1734935081267,0.8129,3308.3,3307.5,1.26433578]
[1734935081563,0.8129,3308.0,3307.5,1.26433578]
[1734935081763,3.83592,3308.0,3307.2,1.26433578]
[1734935082068,0.8129,3308.0,3307.2,1.26433578]
[1734935082220,0.8129,3308.0,3307.3,3.02357]
[1734935082634,0.8129,3308.0,3307.2,1.26433578]
[1734935082915,3.02297,3308.0,3307.2,1.26433578]
[1734935083116,0.8234,3307.8,3307.2,4.26433578]
[1734935083316,0.8234,3307.8,3307.1,0.61116843]
[1734935083724,0.8234,3307.8,3307.0,3.0]
[1734935084144,0.7581,3308.2,3307.1,3.02379]
[1734935084350,0.7581,3308.2,3307.4,3.02349]
[1734935084645,0.7581,3308.2,3307.5,3.0]
[1734935085053,0.7581,3308.2,3307.4,3.0]
[1734935085376,0.7581,3308.2,3307.5,3.02342]
[1734935085563,0.7581,3308.2,3307.6,3.0]
[1734935085866,0.7581,3308.2,3307.4,3.0]
[1734935086069,0.7581,3308.2,3307.9,3.0]
[1734935086375,3.8007,3309.2,3308.1,3.0]
[1734935086574,0.38007,3309.1,3308.2,3.0]
[1734935086783,0.7788,3309.2,3308.2,3.0]
[1734935087465,0.7788,3309.2,3308.0,3.0]
[1734935087663,3.02198,3309.1,3308.0,3.0]
[1734935087876,0.83,3309.0,3308.0,3.0]
[1734935088364,0.83,3309.0,3308.1,3.0]
[1734935088564,0.83,3309.0,3307.8,3.0]
[1734935088778,0.83,3309.0,3307.8,6.02314]
[1734935089495,0.7685,3308.8,3307.8,3.0]
[1734935089662,3.79081,3308.8,3307.8,3.0]
[1734935090047,3.02251,3308.5,3307.3,6.60566841]
[1734935090274,0.7555,3308.4,3307.3,6.60566841]
[1734935090896,0.7555,3308.4,3307.4,0.61214916]
[1734935091201,3.77814,3308.4,3307.4,0.61214916]
[1734935091606,0.7555,3308.4,3307.4,3.61214916]
[1734935092105,0.8098,3308.3,3307.4,3.61214916]
[1734935094301,0.8098,3308.3,3307.6,3.0]
[1734935094498,0.8098,3308.3,3307.4,3.61214916]
[1734935095858,0.8098,3308.3,3307.7,3.0]
[1734935097194,0.8098,3308.3,3307.4,3.61214916]
[1734935098286,0.8215,3308.2,3307.4,3.61214916]
[1734935100215,0.8215,3308.2,3307.4,0.61214916]
[1734935100882,0.7625,3308.1,3306.8,1.89187166]
[1734935101082,0.7625,3308.0,3306.8,1.89187166]
[1734935101317,0.7625,3307.9,3306.8,1.89187166]
[1734935101684,0.7625,3307.9,3307.0,2.78242347]
[1734935102272,0.7625,3307.9,3307.1,3.0]
[1734935102568,0.7625,3307.5,3306.7,2.78242347]
[1734935102801,3.02346,3307.5,3306.5,1.26433578]
[1734935103004,0.7625,3307.4,3306.5,1.26433578]
[1734935103213,0.7625,3307.2,3306.5,1.26433578]
[1734935103422,0.7625,3307.2,3306.7,2.78242347]
[1734935103711,0.7625,3307.5,3306.7,2.78242347]
[1734935103875,3.78593,3307.5,3306.7,2.78242347]
[1734935104073,0.7625,3308.1,3307.3,2.78242347]
[1734935104278,0.7625,3308.1,3307.7,5.80566347]
[1734935104591,3.51699473,3309.3,3308.1,3.0]
[1734935104592,1.26016491,3308.7,3308.1,3.0]
[1734935104902,0.8174,3308.6,3307.3,2.78242347]
[1734935105086,3.83991,3308.5,3307.4,3.0]
[1734935105419,0.8174,3308.5,3307.4,3.0]
[1734935105619,3.02271,3308.3,3307.5,1.26433578]
[1734935106323,0.7808,3308.2,3307.5,1.26433578]
[1734935106733,0.7808,3308.2,3307.3,3.60047265]
[1734935107103,0.7808,3308.2,3307.3,0.60047265]
[1734935107308,0.757,3308.0,3307.1,1.26433578]
[1734935107535,0.7643,3307.7,3307.1,1.26433578]
[1734935108092,0.7643,3307.7,3307.3,3.02361]
[1734935108293,0.7708,3308.0,3307.4,3.0235]
[1734935108821,0.7708,3308.0,3307.2,3.02367]
[1734935108988,0.7708,3308.0,3307.3,6.02357]
[1734935109195,0.7708,3308.3,3307.6,3.02332]
[1734935109394,0.7708,3308.3,3307.7,3.0]
[1734935110338,0.7708,3308.3,3307.8,3.0]
[1734935110542,0.7708,3308.3,3307.6,3.797]
[1734935110543,0.8316,3309.0,3307.9,3.58254824]
[1734935110744,0.8316,3309.0,3308.0,3.0]
[1734935111707,0.8316,3309.0,3308.3,3.0]
[1734935112051,0.8316,3309.0,3308.2,3.0]
[1734935113311,0.8316,3308.5,3307.9,1.26433578]
[1734935113530,0.8316,3308.5,3307.9,4.26433578]
[1734935114560,3.02224,3308.8,3307.6,1.26433578]
[1734935114561,3.02225,3308.8,3307.6,1.26433578]
[1734935114852,0.8325,3307.7,3307.6,1.26433578]
[1734935115038,4.241306,3307.7,3307.6,1.26433578]
[1734935115633,1.218066,3307.7,3306.8,1.26433578]
[1734935115825,0.8325,3307.7,3306.8,1.26433578]
[1734935116053,0.755,3307.3,3306.8,1.26433578]
[1734935116711,0.755,3307.3,3306.6,1.04598541]
[1734935116911,3.02381,3307.1,3306.6,1.04598541]
[1734935117207,0.755,3307.0,3306.6,1.04598541]
[1734935117413,3.02416,3306.7,3306.6,1.04598541]
[1734935117614,3.02398,3306.9,3306.6,1.04598541]
[1734935117813,3.77916,3306.7,3306.6,1.04598541]
[1734935118133,3.77916,3306.7,3306.5,1.04598541]
[1734935118331,0.755,3306.7,3306.5,1.04598541]
[1734935118509,3.02425,3306.6,3306.5,1.04598541]
[1734935119573,3.02435,3306.5,3305.7,1.26433578]
[1734935120011,1.132904,3306.7,3305.7,1.26433578]
[1734935120215,0.755,3306.7,3305.7,1.26433578]
[1734935120462,0.755,3306.7,3305.6,1.04598541]
[1734935120764,3.02427,3306.6,3305.6,1.04598541]
[1734935121553,3.02427,3306.6,3305.6,3.0]
[1734935121717,0.7861,3306.4,3305.6,3.0]
[1734935121918,0.7861,3306.4,3305.3,1.26433578]
[1734935121919,3.02458,3306.3,3305.3,4.26433578]
[1734935122515,0.7861,3306.4,3305.3,4.26433578]
[1734935122718,0.7861,3306.4,3305.4,0.59327934]
[1734935123574,0.7861,3306.4,3305.5,3.0]
[1734935123738,0.7861,3306.4,3305.4,0.59327934]
[1734935124981,0.7861,3306.3,3305.0,1.26433578]
[1734935125180,3.02469,3306.2,3305.0,1.26433578]
[1734935125473,3.02472,3306.1,3305.0,1.26433578]
[1734935125986,0.7951,3306.0,3305.0,1.26433578]
[1734935126180,0.7951,3306.0,3305.0,4.29004578]
[1734935126366,0.7951,3306.0,3305.1,3.0]
[1734935126571,0.7951,3306.0,3305.0,0.61096206]
[1734935127275,0.7951,3306.0,3305.0,3.61096206]
[1734935127680,0.7951,3306.0,3305.0,0.61096206]
[1734935127885,0.7951,3306.0,3305.1,3.02554]
[1734935128086,0.7951,3306.0,3305.2,3.0]
[1734935129696,3.58254824,3307.0,3305.1,3.02554]
[1734935129697,0.7996,3307.1,3305.1,4.90584824]
[1734935129899,0.7996,3306.7,3305.9,3.0]
[1734935130194,0.7996,3306.7,3306.0,3.0]
[1734935130575,0.7996,3306.7,3305.6,6.02508]
[1734935130989,0.7996,3306.7,3305.7,0.55]
[1734935131197,0.8217,3307.3,3306.2,3.0]
[1734935131487,0.8217,3307.3,3306.2,6.02461]
[1734935132102,0.8217,3307.3,3306.0,0.59210804]
[1734935132317,3.02296,3308.1,3306.7,3.02413]
[1734935132489,3.02297,3308.0,3306.8,3.0]
[1734935132688,0.7996,3307.9,3306.8,3.0]
[1734935133377,0.7996,3308.0,3306.2,0.7829]
[1734935133582,0.7996,3307.8,3306.3,3.0]
[1734935133817,0.7996,3307.4,3306.3,3.0]
[1734935134281,3.405914,3307.3,3306.4,0.61094454]
[1734935135115,3.02372,3307.2,3306.4,0.61094454]
[1734935135316,0.7996,3307.4,3306.4,0.61094454]
[1734935135486,0.7996,3307.4,3306.4,3.61094454]
[1734935135915,3.02361,3307.3,3306.4,0.61094454]
[1734935136081,0.382321,3307.2,3306.4,0.61094454]
[1734935136283,3.406031,3307.2,3306.4,0.61094454]
[1734935136479,0.7552,3307.1,3306.0,3.0]
[1734935136716,0.7552,3307.1,3305.5,1.26433578]
[1734935136717,0.7552,3307.1,3305.5,5.80699757]
[1734935137020,3.02398,3306.9,3305.6,1.26433578]
[1734935137188,0.7552,3307.1,3306.0,3.0248]
[1734935137387,0.7552,3307.1,3305.9,3.02487]
[1734935137723,0.7552,3307.1,3306.0,3.0248]
[1734935137922,0.7552,3307.1,3306.1,3.0247]
[1734935138135,0.7552,3307.1,3306.2,3.0]
[1734935139039,0.8243,3307.0,3305.7,0.59828257]
[1734935139394,0.8243,3306.9,3305.7,0.59828257]
[1734935139648,3.02459,3306.3,3305.6,1.26433578]
[1734935139797,0.8243,3306.2,3305.6,1.26433578]
[1734935140491,3.02472,3306.1,3305.6,1.26433578]
[1734935140714,3.409622,3306.1,3305.4,0.60469944]
[1734935140965,3.409622,3306.1,3305.0,1.26433578]
[1734935141657,3.409622,3306.1,3304.9,0.15240254]